Workbook

Sheet Diagramm
A1: Fourier-Analysen von Klavierklängen
A2: Mit den zwei oberen der vier Taster können die FFT-Ergebnisse für die Taste a (220Hz) ein- und ausgeblendet werden (voreingestellt: Anzeige von FFT 220).
A3: Mit den zwei unteren der vier Taster können die FFT-Ergebnisse für die Taste a1 (440Hz) ein- und ausgeblendet werden.
A4: Dabei bedeutet stumm: Die jeweilige Saite wurde stumm niedergedrückt und durch den Klang der anderen angeregt.

Sheet FFT 220
B2: Maximum: | C2: normiert auf Max
B3: =MAX(B4:B2051) -> 1722.698219 | C3: =norm -> 100
A4: 1.46484375 | B4: 2.169362472 | C4: =B4/$B$3*norm -> 0.1259281776
A5: 2.9296875 | B5: 1.838410591 | C5: 0.1067169264
A6: 4.39453125 | B6: 1.577626124 | C6: 0.09157878649
A7: 5.859375 | B7: 1.45270788 | C7: 0.0843274733
A8: 7.32421875 | B8: 1.47954174 | C8: 0.08588513788
A9: 8.7890625 | B9: 1.522190545 | C9: 0.08836083582
A10: 10.25390625 | B10: 1.453917405 | C10: 0.08439768438
A11: 11.71875 | B11: 1.416502975 | C11: 0.08222583384
A12: 13.18359375 | B12: 1.463456426 | C12: 0.08495140997
A13: 14.6484375 | B13: 1.448254645 | C13: 0.08406896977
A14: 16.11328125 | B14: 1.462234964 | C14: 0.08488050598
A15: 17.578125 | B15: 1.610214079 | C15: 0.0934704675
A16: 19.04296875 | B16: 1.456039634 | C16: 0.08452087652
A17: 20.5078125 | B17: 1.471830295 | C17: 0.08543750024
A18: 21.97265625 | B18: 1.560656539 | C18: 0.09059372804
A19: 23.4375 | B19: 1.610614787 | C19: 0.09349372799
A20: 24.90234375 | B20: 1.465810955 | C20: 0.08508808678
A21: 26.3671875 | B21: 1.610950501 | C21: 0.09351321569
A22: 27.83203125 | B22: 1.433277427 | C22: 0.08319956518
A23: 29.296875 | B23: 1.590636107 | C23: 0.09233399615
A24: 30.76171875 | B24: 1.468661949 | C24: 0.0852535826
A25: 32.2265625 | B25: 1.548519625 | C25: 0.08988919871
A26: 33.69140625 | B26: 1.70954809 | C26: 0.0992366551
A27: 35.15625 | B27: 1.394109859 | C27: 0.08092594769
A28: 36.62109375 | B28: 1.84208294 | C28: 0.1069301007
A29: 38.0859375 | B29: 1.6607537 | C29: 0.09640421533
A30: 39.55078125 | B30: 1.549152732 | C30: 0.08992594959
A31: 41.015625 | B31: 1.624394709 | C31: 0.09429363145
A32: 42.48046875 | B32: 1.777071052 | C32: 0.1031562599
A33: 43.9453125 | B33: 1.393467312 | C33: 0.08088864881
A34: 45.41015625 | B34: 1.611591645 | C34: 0.0935504331
A35: 46.875 | B35: 2.061079221 | C35: 0.1196425002
A36: 48.33984375 | B36: 1.960388996 | C36: 0.1137975865
A37: 49.8046875 | B37: 1.541638633 | C37: 0.08948976762
A38: 51.26953125 | B38: 1.402621512 | C38: 0.08142003615
A39: 52.734375 | B39: 1.537308833 | C39: 0.08923842937
A40: 54.19921875 | B40: 1.396732313 | C40: 0.08107817713
A41: 55.6640625 | B41: 2.044023931 | C41: 0.1186524668
A42: 57.12890625 | B42: 2.22444742 | C42: 0.1291257746
A43: 58.59375 | B43: 1.678786158 | C43: 0.09745097194
A44: 60.05859375 | B44: 1.761960297 | C44: 0.1022791037
A45: 61.5234375 | B45: 1.831905413 | C45: 0.1063393108
A46: 62.98828125 | B46: 1.540174226 | C46: 0.08940476103
A47: 64.453125 | B47: 2.025435012 | C47: 0.1175734084
A48: 65.91796875 | B48: 1.894574383 | C48: 0.1099771488
A49: 67.3828125 | B49: 2.181687607 | C49: 0.1266436328
A50: 68.84765625 | B50: 1.904391118 | C50: 0.1105469952
A51: 70.3125 | B51: 2.150970153 | C51: 0.1248605316
A52: 71.77734375 | B52: 2.347378024 | C52: 0.1362617084
A53: 73.2421875 | B53: 1.856485333 | C53: 0.1077661376
A54: 74.70703125 | B54: 1.739894258 | C54: 0.1009982038
A55: 76.171875 | B55: 2.36258208 | C55: 0.1371442807
A56: 77.63671875 | B56: 2.060011557 | C56: 0.119580524
A57: 79.1015625 | B57: 1.672506396 | C57: 0.09708644138
A58: 80.56640625 | B58: 2.361434888 | C58: 0.1370776879
A59: 82.03125 | B59: 2.400842988 | C59: 0.1393652679
A60: 83.49609375 | B60: 2.204999158 | C60: 0.1279968328
A61: 84.9609375 | B61: 2.954464324 | C61: 0.1715021407
A62: 86.42578125 | B62: 2.277350806 | C62: 0.1321967354
A63: 87.890625 | B63: 2.290643627 | C63: 0.1329683634
A64: 89.35546875 | B64: 2.820500502 | C64: 0.1637257456
A65: 90.8203125 | B65: 3.199602228 | C65: 0.1857320216
A66: 92.28515625 | B66: 2.6493621 | C66: 0.1537914228
A67: 93.75 | B67: 2.9993218 | C67: 0.1741060487
A68: 95.21484375 | B68: 2.139428058 | C68: =B68/$B$3*norm -> 0.1241905306
A69: 96.6796875 | B69: 2.858078863 | C69: 0.165907112
A70: 98.14453125 | B70: 2.25211764 | C70: 0.1307319886
A71: 99.609375 | B71: 3.371498011 | C71: 0.1957103092
A72: 101.0742188 | B72: 1.536532142 | C72: 0.08919334363
A73: 102.5390625 | B73: 3.567868442 | C73: 0.2071093128
A74: 104.0039062 | B74: 2.782279261 | C74: 0.1615070609
A75: 105.46875 | B75: 3.767873189 | C75: 0.2187192828
A76: 106.9335938 | B76: 3.334086486 | C76: 0.1935386273
A77: 108.3984375 | B77: 2.227429445 | C77: 0.1292988766
A78: 109.8632812 | B78: 3.688831856 | C78: 0.2141310542
A79: 111.328125 | B79: 2.419634069 | C79: 0.1404560615
A80: 112.7929688 | B80: 2.913371409 | C80: 0.1691167598
A81: 114.2578125 | B81: 3.128740609 | C81: 0.1816186129
A82: 115.7226562 | B82: 3.731809086 | C82: 0.2166258167
A83: 117.1875 | B83: 4.149025135 | C83: 0.240844571
A84: 118.6523438 | B84: 3.323342959 | C84: 0.192914982
A85: 120.1171875 | B85: 3.310331324 | C85: 0.1921596765
A86: 121.5820312 | B86: 3.96583208 | C86: 0.230210494
A87: 123.046875 | B87: 4.187684431 | C87: 0.2430886841
A88: 124.5117188 | B88: 4.370964011 | C88: 0.2537277838
A89: 125.9765625 | B89: 3.647825148 | C89: 0.2117506774
A90: 127.4414062 | B90: 3.753562711 | C90: 0.2178885815
A91: 128.90625 | B91: 3.95471312 | C91: 0.2295650554
A92: 130.3710938 | B92: 4.657940896 | C92: 0.2703863535
A93: 131.8359375 | B93: 3.850756867 | C93: 0.2235305537
A94: 133.3007812 | B94: 4.635526031 | C94: 0.2690852049
A95: 134.765625 | B95: 4.671127483 | C95: 0.2711518148
A96: 136.2304688 | B96: 4.420639172 | C96: 0.256611351
A97: 137.6953125 | B97: 4.903955227 | C97: 0.2846671097
A98: 139.1601562 | B98: 4.401308816 | C98: 0.2554892533
A99: 140.625 | B99: 5.358171394 | C99: 0.3110336643
A100: 142.0898438 | B100: 4.792354185 | C100: 0.2781888396
A101: 143.5546875 | B101: 4.992426858 | C101: 0.2898027527
A102: 145.0195312 | B102: 5.010201868 | C102: 0.2908345648
A103: 146.484375 | B103: 5.832721183 | C103: 0.3385805546
A104: 147.9492188 | B104: 3.384284787 | C104: 0.196452562
A105: 149.4140625 | B105: 5.632396069 | C105: 0.3269519878
A106: 150.8789062 | B106: 6.870398046 | C106: 0.3988161113
A107: 152.34375 | B107: 3.711734484 | C107: 0.2154605168
A108: 153.8085938 | B108: 4.728211687 | C108: 0.2744654656
A109: 155.2734375 | B109: 8.208902509 | C109: 0.4765142507
A110: 156.7382812 | B110: 6.444280376 | C110: 0.3740806316
A111: 158.203125 | B111: 6.936336383 | C111: 0.4026437311
A112: 159.6679688 | B112: 6.719937545 | C112: 0.3900821091
A113: 161.1328125 | B113: 6.987261839 | C113: 0.405599876
A114: 162.5976562 | B114: 7.678548889 | C114: 0.4457280333
A115: 164.0625 | B115: 6.977400959 | C115: 0.405027467
A116: 165.5273438 | B116: 7.792857666 | C116: 0.4523634831
A117: 166.9921875 | B117: 8.336519042 | C117: 0.4839221955
A118: 168.4570312 | B118: 8.787302073 | C118: 0.5100894619
A119: 169.921875 | B119: 9.484012595 | C119: 0.5505324434
A120: 171.3867188 | B120: 8.620329366 | C120: 0.5003969513
A121: 172.8515625 | B121: 8.359751731 | C121: 0.4852708176
A122: 174.3164062 | B122: 8.796887587 | C122: 0.5106458863
A123: 175.78125 | B123: 9.92674544 | C123: 0.5762324087
A124: 177.2460938 | B124: 9.666670788 | C124: 0.5611354724
A125: 178.7109375 | B125: 11.27843828 | C125: 0.6546961131
A126: 180.1757812 | B126: 10.3716415 | C126: 0.6020579454
A127: 181.640625 | B127: 11.66378969 | C127: 0.6770651738
A128: 183.1054688 | B128: 12.96385776 | C128: 0.7525321392
A129: 184.5703125 | B129: 13.47575349 | C129: 0.7822469046
A130: 186.0351562 | B130: 13.50962242 | C130: 0.7842129444
A131: 187.5 | B131: 15.87287628 | C131: 0.9213962208
A132: 188.9648438 | B132: 15.99260275 | C132: =B132/$B$3*norm -> 0.9283461592
A133: 190.4296875 | B133: 16.40884388 | C133: 0.9525083211
A134: 191.8945312 | B134: 18.04750494 | C134: 1.047630092
A135: 193.359375 | B135: 18.72125239 | C135: 1.086740103
A136: 194.8242188 | B136: 21.48701761 | C136: 1.247288548
A137: 196.2890625 | B137: 23.09715756 | C137: 1.340754713
A138: 197.7539062 | B138: 25.81256283 | C138: 1.498379841
A139: 199.21875 | B139: 20.57047906 | C139: 1.194084886
A140: 200.6835938 | B140: 23.54449596 | C140: 1.366722024
A141: 202.1484375 | B141: 30.76032661 | C141: 1.78558997
A142: 203.6132812 | B142: 29.8288483 | C142: 1.731519077
A143: 205.078125 | B143: 34.44005148 | C143: 1.999192378
A144: 206.5429688 | B144: 38.19903231 | C144: 2.217395473
A145: 208.0078125 | B145: 44.2490412 | C145: 2.568589247
A146: 209.4726562 | B146: 50.31643217 | C146: 2.920792024
A147: 210.9375 | B147: 60.1539701 | C147: 3.491846073
A148: 212.4023438 | B148: 69.21439416 | C148: 4.017789849
A149: 213.8671875 | B149: 99.71354732 | C149: 5.7882191
A150: 215.3320312 | B150: 141.8694144 | C150: 8.235302784
A151: 216.796875 | B151: 237.8576039 | C151: 13.80727055
A152: 218.2617188 | B152: 624.5602506 | C152: 36.25476847
A153: 219.7265625 | B153: 1722.698219 | C153: 100
A154: 221.1914062 | B154: 382.7130211 | C154: 22.21590624
A155: 222.65625 | B155: 171.4855066 | C155: 9.954471696
A156: 224.1210938 | B156: 111.780161 | C156: 6.488667592
A157: 225.5859375 | B157: 81.27236924 | C157: 4.717736883
A158: 227.0507812 | B158: 65.90327151 | C158: 3.825584237
A159: 228.515625 | B159: 55.16892141 | C159: 3.202471612
A160: 229.9804688 | B160: 48.17568047 | C160: 2.796524658
A161: 231.4453125 | B161: 40.85011565 | C161: 2.371286811
A162: 232.9101562 | B162: 37.24345155 | C162: 2.161925469
A163: 234.375 | B163: 34.32875135 | C163: 1.992731575
A164: 235.8398438 | B164: 31.91586693 | C164: 1.852667321
A165: 237.3046875 | B165: 28.4213192 | C165: 1.649814163
A166: 238.7695312 | B166: 27.4269586 | C166: 1.592093049
A167: 240.234375 | B167: 26.57994897 | C167: 1.542925434
A168: 241.6992188 | B168: 25.32039334 | C168: 1.469810154
A169: 243.1640625 | B169: 23.83286401 | C169: 1.383461349
A170: 244.6289062 | B170: 22.10808068 | C170: 1.283340311
A171: 246.09375 | B171: 21.65092434 | C171: 1.256803084
A172: 247.5585938 | B172: 20.99832202 | C172: 1.218920516
A173: 249.0234375 | B173: 18.30794955 | C173: 1.062748504
A174: 250.4882812 | B174: 17.87558496 | C174: 1.0376504
A175: 251.953125 | B175: 20.04823626 | C175: 1.163769489
A176: 253.4179688 | B176: 17.66627788 | C176: 1.025500444
A177: 254.8828125 | B177: 17.13112712 | C177: 0.9944357596
A178: 256.3476562 | B178: 16.39253458 | C178: 0.9515615913
A179: 257.8125 | B179: 15.4570698 | C179: 0.8972592896
A180: 259.2773438 | B180: 15.25724384 | C180: 0.8856596977
A181: 260.7421875 | B181: 14.22531513 | C181: 0.8257578129
A182: 262.2070312 | B182: 13.40017229 | C182: 0.777859531
A183: 263.671875 | B183: 13.32647245 | C183: 0.7735813684
A184: 265.1367188 | B184: 12.96441696 | C184: 0.7525646003
A185: 266.6015625 | B185: 13.16887894 | C185: 0.7644333056
A186: 268.0664062 | B186: 12.23922432 | C186: 0.7104682751
A187: 269.53125 | B187: 12.36865692 | C187: 0.71798164
A188: 270.9960938 | B188: 11.99891035 | C188: 0.6965184162
A189: 272.4609375 | B189: 11.5592236 | C189: 0.6709952723
A190: 273.9257812 | B190: 12.20216599 | C190: 0.7083170956
A191: 275.390625 | B191: 12.27443739 | C191: 0.7125123401
A192: 276.8554688 | B192: 10.86311172 | C192: 0.6305870407
A193: 278.3203125 | B193: 12.5074317 | C193: 0.7260373036
A194: 279.7851562 | B194: 11.88262155 | C194: 0.6897680289
A195: 281.25 | B195: 10.38225824 | C195: 0.6026742311
A196: 282.7148438 | B196: 11.22136826 | C196: =B196/$B$3*norm -> 0.651383286
A197: 284.1796875 | B197: 10.03995757 | C197: 0.5828041997
A198: 285.6445312 | B198: 10.02448806 | C198: 0.5819062187
A199: 287.109375 | B199: 11.03554279 | C199: 0.6405964009
A200: 288.5742188 | B200: 9.914465366 | C200: 0.5755195692
A201: 290.0390625 | B201: 9.947680299 | C201: 0.5774476453
... 16185 more rows

Sheet FFT 220 stumm
B2: Maximum: | C2: normiert auf Max
B3: =MAX(B4:B1503) -> 103.1040712 | C3: 100
A4: 2 | B4: 1.888356607 | C4: =B4/$B$3*norm -> 1.831505376
A5: 4 | B5: 1.164442124 | C5: 1.129385203
A6: 6 | B6: 0.9174079722 | C6: 0.8897883097
A7: 8 | B7: 0.6833158666 | C7: 0.6627438265
A8: 10 | B8: 0.5388247302 | C8: 0.5226027683
A9: 12 | B9: 0.3210140502 | C9: 0.3113495389
A10: 14 | B10: 0.2891366305 | C10: 0.280431827
A11: 16 | B11: 0.2943100223 | C11: 0.2854494677
A12: 18 | B12: 0.4025136595 | C12: 0.3903955051
A13: 20 | B13: 0.4083408137 | C13: 0.3960472259
A14: 22 | B14: 0.359321152 | C14: 0.3485033596
A15: 24 | B15: 0.2641946139 | C15: 0.2562407196
A16: 26 | B16: 0.3012541374 | C16: 0.2921845218
A17: 28 | B17: 0.4286966258 | C17: 0.4157902019
A18: 30 | B18: 0.4130190588 | C18: 0.4005846268
A19: 32 | B19: 0.2710149569 | C19: 0.262855728
A20: 34 | B20: 0.2096787545 | C20: 0.2033661253
A21: 36 | B21: 0.2333655516 | C21: 0.226339803
A22: 38 | B22: 0.2744663252 | C22: 0.2662031887
A23: 40 | B23: 0.3338209875 | C23: 0.3237709081
A24: 42 | B24: 0.1207461494 | C24: 0.1171109424
A25: 44 | B25: 0.05886136948 | C25: 0.05708927767
A26: 46 | B26: 0.2886716209 | C26: 0.279980817
A27: 48 | B27: 0.3374363825 | C27: 0.3272774573
A28: 50 | B28: 0.2910339302 | C28: 0.2822720062
A29: 52 | B29: 0.1160876422 | C29: 0.1125926851
A30: 54 | B30: 0.2296688675 | C30: 0.222754412
A31: 56 | B31: 0.2719148195 | C31: 0.2637284992
A32: 58 | B32: 0.3957531594 | C32: 0.383838538
A33: 60 | B33: 0.4375051357 | C33: 0.4243335211
A34: 62 | B34: 0.3084904991 | C34: 0.2992030242
A35: 64 | B35: 0.2804343289 | C35: 0.2719915186
A36: 66 | B36: 0.4597634217 | C36: 0.4459216949
A37: 68 | B37: 0.3452270802 | C37: 0.3348336067
A38: 70 | B38: 0.3705944748 | C38: 0.3594372856
A39: 72 | B39: 0.2117056635 | C39: 0.2053320117
A40: 74 | B40: 0.1506102299 | C40: 0.1460759291
A41: 76 | B41: 0.247500036 | C41: 0.2400487519
A42: 78 | B42: 0.4846324185 | C42: 0.4700419808
A43: 80 | B43: 0.3932583287 | C43: 0.3814188171
A44: 82 | B44: 0.2542171806 | C44: 0.2465636688
A45: 84 | B45: 0.7227690485 | C45: 0.7010092232
A46: 86 | B46: 0.6025139775 | C46: 0.5843745748
A47: 88 | B47: 0.266503798 | C47: 0.2584803829
A48: 90 | B48: 0.199255905 | C48: 0.1932570681
A49: 92 | B49: 0.4546414475 | C49: 0.4409539238
A50: 94 | B50: 0.4198991174 | C50: 0.407257553
A51: 96 | B51: 0.463449278 | C51: 0.4494965841
A52: 98 | B52: 0.3734533487 | C52: 0.3622100897
A53: 100 | B53: 0.3389814359 | C53: 0.328775995
A54: 102 | B54: 0.7774434839 | C54: 0.7540376195
A55: 104 | B55: 0.3216224702 | C55: 0.3119396417
A56: 106 | B56: 0.342581539 | C56: 0.3322677127
A57: 108 | B57: 0.5325692368 | C57: 0.516535604
A58: 110 | B58: 0.2705275309 | C58: 0.2623829766
A59: 112 | B59: 0.2918439919 | C59: 0.28305768
A60: 114 | B60: 0.3574009664 | C60: 0.3466409835
A61: 116 | B61: 0.5387802311 | C61: 0.5225596089
A62: 118 | B62: 0.511902343 | C62: 0.4964909117
A63: 120 | B63: 0.3169423019 | C63: 0.3074003755
A64: 122 | B64: 1.024117718 | C64: 0.9932854317
A65: 124 | B65: 0.2758381073 | C65: 0.2675336717
A66: 126 | B66: 0.3762654354 | C66: 0.3649375152
A67: 128 | B67: 0.2781678006 | C67: 0.2697932268
A68: 130 | B68: 0.8802471786 | C68: =B68/$B$3*norm -> 0.8537462862
A69: 132 | B69: 1.264410776 | C69: 1.22634418
A70: 134 | B70: 0.9182437027 | C70: 0.8905988796
A71: 136 | B71: 0.3018076042 | C71: 0.2927213259
A72: 138 | B72: 0.5212064808 | C72: 0.5055149373
A73: 140 | B73: 0.3759690067 | C73: 0.3646500108
A74: 142 | B74: 0.3935336751 | C74: 0.3816858739
A75: 144 | B75: 0.5791402773 | C75: 0.5617045678
A76: 146 | B76: 0.8650220323 | C76: 0.8389795111
A77: 148 | B77: 1.224866314 | C77: 1.187990251
A78: 150 | B78: 0.2090222046 | C78: 0.2027293416
A79: 152 | B79: 0.6534974316 | C79: 0.6338231111
A80: 154 | B80: 0.5556885135 | C80: 0.5389588472
A81: 156 | B81: 1.198092656 | C81: 1.162022646
A82: 158 | B82: 0.8337773065 | C82: 0.808675445
A83: 160 | B83: 0.6233885844 | C83: 0.6046207267
A84: 162 | B84: 0.2292747269 | C84: 0.2223721375
A85: 164 | B85: 0.2173538608 | C85: 0.2108101632
A86: 166 | B86: 0.2039254662 | C86: 0.1977860466
A87: 168 | B87: 0.6301313542 | C87: 0.6111604973
A88: 170 | B88: 0.5321610425 | C88: 0.5161396989
A89: 172 | B89: 0.4912378454 | C89: 0.4764485435
A90: 174 | B90: 0.2674224028 | C90: 0.2593713321
A91: 176 | B91: 0.1251390417 | C91: 0.1213715814
A92: 178 | B92: 0.2579584228 | C92: 0.2501922764
A93: 180 | B93: 0.6028093967 | C93: 0.5846611
A94: 182 | B94: 0.06178709141 | C94: 0.05992691725
A95: 184 | B95: 0.3075974704 | C95: 0.2983368813
A96: 186 | B96: 0.6832013311 | C96: 0.6626327392
A97: 188 | B97: 0.6595346662 | C97: 0.6396785875
A98: 190 | B98: 1.304359855 | C98: 1.265090544
A99: 192 | B99: 0.6100516416 | C99: 0.5916853085
A100: 194 | B100: 0.3354593113 | C100: 0.3253599082
A101: 196 | B101: 0.4051339391 | C101: 0.3929368981
A102: 198 | B102: 0.2170352165 | C102: 0.2105011122
A103: 200 | B103: 0.5667033741 | C103: 0.5496420924
A104: 202 | B104: 1.046224586 | C104: 1.014726745
A105: 204 | B105: 0.2329577234 | C105: 0.2259442529
A106: 206 | B106: 0.2534755901 | C106: 0.2458444048
A107: 208 | B107: 0.4741258864 | C107: 0.4598517605
A108: 210 | B108: 0.1370985205 | C108: 0.1329710059
A109: 212 | B109: 0.4976414661 | C109: 0.4826593756
A110: 214 | B110: 0.3989613713 | C110: 0.3869501628
A111: 216 | B111: 0.6736763328 | C111: 0.6533945024
A112: 218 | B112: 0.8198861205 | C112: 0.7952024698
A113: 220 | B113: 0.4268056571 | C113: 0.4139561632
A114: 222 | B114: 0.3328619919 | C114: 0.3228407842
A115: 224 | B115: 0.4152266184 | C115: 0.4027257252
A116: 226 | B116: 0.2525003945 | C116: 0.2448985686
A117: 228 | B117: 0.3970747852 | C117: 0.3851203746
A118: 230 | B118: 0.144048549 | C118: 0.1397117955
A119: 232 | B119: 0.1021485457 | C119: 0.09907324178
A120: 234 | B120: 0.379097063 | C120: 0.3676838933
A121: 236 | B121: 0.3408705387 | C121: 0.3306082241
A122: 238 | B122: 0.5239042726 | C122: 0.5081315089
A123: 240 | B123: 0.07375892296 | C123: 0.07153832251
A124: 242 | B124: 0.5044477549 | C124: 0.4892607529
A125: 244 | B125: 0.3695836284 | C125: 0.358456872
A126: 246 | B126: 0.3297935607 | C126: 0.3198647318
A127: 248 | B127: 0.4856189531 | C127: 0.4709988147
A128: 250 | B128: 0.2478007774 | C128: 0.2403404391
A129: 252 | B129: 0.8889779938 | C129: 0.8622142498
A130: 254 | B130: 0.4758491524 | C130: 0.4615231455
A131: 256 | B131: 0.3117993032 | C131: 0.3024122128
A132: 258 | B132: 0.500260318 | C132: =B132/$B$3*norm -> 0.4851993838
A133: 260 | B133: 0.5597615196 | C133: 0.5429092306
A134: 262 | B134: 0.5986503136 | C134: 0.5806272311
A135: 264 | B135: 0.564087444 | C135: 0.547104918
A136: 266 | B136: 0.2751678984 | C136: 0.2668836402
A137: 268 | B137: 0.4633447881 | C137: 0.44939524
A138: 270 | B138: 0.587391751 | C138: 0.569707621
A139: 272 | B139: 0.370679667 | C139: 0.359519913
A140: 274 | B140: 0.5446326784 | C140: 0.5282358613
A141: 276 | B141: 0.351006974 | C141: 0.34043949
A142: 278 | B142: 0.6896424106 | C142: 0.6688799024
A143: 280 | B143: 0.3219939945 | C143: 0.3122999808
A144: 282 | B144: 0.2783059702 | C144: 0.2699272366
A145: 284 | B145: 0.679765708 | C145: 0.6593005496
A146: 286 | B146: 0.3014991116 | C146: 0.2924221209
A147: 288 | B147: 0.2230877092 | C147: 0.2163713874
A148: 290 | B148: 0.4923922217 | C148: 0.4775681659
A149: 292 | B149: 0.6386526877 | C149: 0.6194252859
A150: 294 | B150: 0.5276579029 | C150: 0.5117721316
A151: 296 | B151: 0.1600827621 | C151: 0.1552632794
A152: 298 | B152: 0.5310067057 | C152: 0.5150201148
A153: 300 | B153: 0.1667441973 | C153: 0.1617241642
A154: 302 | B154: 1.135908998 | C154: 1.101711101
A155: 304 | B155: 0.5445315291 | C155: 0.5281377572
A156: 306 | B156: 0.3752091621 | C156: 0.3639130422
A157: 308 | B157: 0.7848941671 | C157: 0.761263991
A158: 310 | B158: 0.420292852 | C158: 0.4076394338
A159: 312 | B159: 0.6941332872 | C159: 0.6732355757
A160: 314 | B160: 0.4370349427 | C160: 0.4238774839
A161: 316 | B161: 0.6486635855 | C161: 0.6291347937
A162: 318 | B162: 0.8297936362 | C162: 0.804811708
A163: 320 | B163: 0.5833394137 | C163: 0.5657772841
A164: 322 | B164: 0.5630891989 | C164: 0.5461367262
A165: 324 | B165: 0.5296198915 | C165: 0.5136750523
A166: 326 | B166: 0.635772009 | C166: 0.6166313335
A167: 328 | B167: 0.7096704871 | C167: 0.6883050097
A168: 330 | B168: 0.8130662685 | C168: 0.7885879376
A169: 332 | B169: 0.5383513301 | C169: 0.5221436204
A170: 334 | B170: 0.5605656553 | C170: 0.5436891569
A171: 336 | B171: 0.6338763219 | C171: 0.6147927183
A172: 338 | B172: 0.8469247727 | C172: 0.8214270911
A173: 340 | B173: 0.6433511596 | C173: 0.6239823047
A174: 342 | B174: 0.8941137203 | C174: 0.8671953591
A175: 344 | B175: 0.4311893328 | C175: 0.418207863
A176: 346 | B176: 0.732116364 | C176: 0.7100751267
A177: 348 | B177: 0.7447197122 | C177: 0.722299036
A178: 350 | B178: 0.7000420138 | C178: 0.6789664131
A179: 352 | B179: 0.5749384704 | C179: 0.5576292613
A180: 354 | B180: 0.5576699788 | C180: 0.5408806582
A181: 356 | B181: 0.9919107767 | C181: 0.9620481184
A182: 358 | B182: 0.9078656649 | C182: 0.880533285
A183: 360 | B183: 0.5814801418 | C183: 0.5639739878
A184: 362 | B184: 0.722432001 | C184: 0.7006823229
A185: 364 | B185: 0.8783617317 | C185: 0.8519176029
A186: 366 | B186: 0.8936341929 | C186: 0.8667302684
A187: 368 | B187: 1.201574632 | C187: 1.165399793
A188: 370 | B188: 0.7926960294 | C188: 0.7688309689
A189: 372 | B189: 0.980263925 | C189: 0.950751909
A190: 374 | B190: 0.9930156926 | C190: 0.9631197694
A191: 376 | B191: 1.058177321 | C191: 1.02631963
A192: 378 | B192: 1.408838041 | C192: 1.366423289
A193: 380 | B193: 1.018174676 | C193: 0.9875213113
A194: 382 | B194: 1.164010922 | C194: 1.128966984
A195: 384 | B195: 0.9714179049 | C195: 0.942172209
A196: 386 | B196: 1.130673158 | C196: =B196/$B$3*norm -> 1.096632892
A197: 388 | B197: 1.25862596 | C197: 1.220733522
A198: 390 | B198: 1.112209339 | C198: 1.078724949
A199: 392 | B199: 1.167876099 | C199: 1.132715794
A200: 394 | B200: 1.216346927 | C200: 1.179727351
A201: 396 | B201: 1.393570693 | C201: 1.351615583
... 11801 more rows

Sheet FFT 440
B2: Maximum: | C2: normiert auf Max
B3: =MAX(B4:B1203) -> 291.1754667 | C3: =norm -> 100
A4: 2.5 | B4: 0.4679233647 | C4: =B4/$B$3*norm -> 0.1607015076
A5: 5 | B5: 0.4322681364 | C5: 0.1484562354
A6: 7.5 | B6: 0.4303543046 | C6: 0.1477989576
A7: 10 | B7: 0.4264849705 | C7: 0.1464700908
A8: 12.5 | B8: 0.4127700383 | C8: 0.1417598959
A9: 15 | B9: 0.5181126831 | C9: 0.1779383026
A10: 17.5 | B10: 0.4419589751 | C10: 0.1517844138
A11: 20 | B11: 0.5114898502 | C11: 0.1756637865
A12: 22.5 | B12: 0.4467905326 | C12: 0.1534437422
A13: 25 | B13: 0.4842386553 | C13: 0.166304758
A14: 27.5 | B14: 0.5736874085 | C14: 0.1970246378
A15: 30 | B15: 0.5283273244 | C15: 0.1814463734
A16: 32.5 | B16: 0.3754608961 | C16: 0.1289466109
A17: 35 | B17: 0.4711851262 | C17: 0.1618217124
A18: 37.5 | B18: 0.4463001967 | C18: 0.1532753435
A19: 40 | B19: 0.4200092824 | C19: 0.1442461095
A20: 42.5 | B20: 0.5757236413 | C20: 0.1977239525
A21: 45 | B21: 0.5865037021 | C21: 0.2014262083
A22: 47.5 | B22: 0.9878837536 | C22: 0.3392743781
A23: 50 | B23: 0.6225729994 | C23: 0.2138136865
A24: 52.5 | B24: 0.524379945 | C24: 0.180090703
A25: 55 | B25: 0.4516974998 | C25: 0.1551289691
A26: 57.5 | B26: 0.5669253975 | C26: 0.1947023229
A27: 60 | B27: 0.8481359896 | C27: 0.291280031
A28: 62.5 | B28: 0.6855736886 | C28: 0.2354503614
A29: 65 | B29: 0.2904834881 | C29: 0.09976234997
A30: 67.5 | B30: 0.5170090411 | C30: 0.1775592728
A31: 70 | B31: 0.4863491707 | C31: 0.167029584
A32: 72.5 | B32: 0.4277012004 | C32: 0.1468877874
A33: 75 | B33: 0.1712840583 | C33: 0.05882503091
A34: 77.5 | B34: 1.361267942 | C34: 0.4675077739
A35: 80 | B35: 0.4275796924 | C35: 0.1468460572
A36: 82.5 | B36: 1.995948207 | C36: 0.6854795253
A37: 85 | B37: 1.157642749 | C37: 0.3975756481
A38: 87.5 | B38: 0.4733868451 | C38: 0.1625778609
A39: 90 | B39: 0.4672736239 | C39: 0.1604783635
A40: 92.5 | B40: 0.5592404204 | C40: 0.1920630288
A41: 95 | B41: 0.4023609944 | C41: 0.1381850604
A42: 97.5 | B42: 0.8840479945 | C42: 0.3036134893
A43: 100 | B43: 0.7849588322 | C43: 0.2695827506
A44: 102.5 | B44: 0.9219014137 | C44: 0.3166136983
A45: 105 | B45: 0.6827799654 | C45: 0.2344908976
A46: 107.5 | B46: 0.7609721804 | C46: 0.2613448822
A47: 110 | B47: 0.3010513828 | C47: 0.1033917405
A48: 112.5 | B48: 0.5848372587 | C48: 0.2008538925
A49: 115 | B49: 0.4867907643 | C49: 0.1671812429
A50: 117.5 | B50: 0.2579719459 | C50: 0.08859673134
A51: 120 | B51: 0.5463067232 | C51: 0.1876211377
A52: 122.5 | B52: 0.6658383248 | C52: 0.2286725363
A53: 125 | B53: 0.8336098269 | C53: 0.2862912306
A54: 127.5 | B54: 0.7450526752 | C54: 0.2558775585
A55: 130 | B55: 1.213654859 | C55: 0.4168121966
A56: 132.5 | B56: 1.85244878 | C56: 0.6361967241
A57: 135 | B57: 1.503862053 | C57: 0.5164796574
A58: 137.5 | B58: 0.9262589154 | C58: 0.3181102192
A59: 140 | B59: 0.623068193 | C59: 0.2139837535
A60: 142.5 | B60: 0.4779884103 | C60: 0.1641582019
A61: 145 | B61: 0.9036934026 | C61: 0.3103604204
A62: 147.5 | B62: 1.107029135 | C62: 0.3801931351
A63: 150 | B63: 0.2637711085 | C63: 0.09058836979
A64: 152.5 | B64: 0.09137666262 | C64: 0.03138199233
A65: 155 | B65: 1.987639911 | C65: 0.6826261613
A66: 157.5 | B66: 0.806745685 | C66: 0.2770651299
A67: 160 | B67: 1.25458261 | C67: 0.4308682406
A68: 162.5 | B68: 0.1828794591 | C68: =B68/$B$3*norm -> 0.06280730351
A69: 165 | B69: 1.022239391 | C69: 0.3510733244
A70: 167.5 | B70: 0.006549801288 | C70: 0.00224943446
A71: 170 | B71: 1.248923919 | C71: 0.4289248448
A72: 172.5 | B72: 1.183835789 | C72: 0.4065712686
A73: 175 | B73: 0.7756903516 | C73: 0.2663996251
A74: 177.5 | B74: 0.9627947593 | C74: 0.330657926
A75: 180 | B75: 1.332260755 | C75: 0.4575456753
A76: 182.5 | B76: 0.7220573517 | C76: 0.2479801475
A77: 185 | B77: 0.3174433196 | C77: 0.1090213139
A78: 187.5 | B78: 0.622883956 | C78: 0.21392048
A79: 190 | B79: 0.2224609865 | C79: 0.07640100625
A80: 192.5 | B80: 1.058310484 | C80: 0.3634614194
A81: 195 | B81: 0.5797246459 | C81: 0.1990980396
A82: 197.5 | B82: 1.475049556 | C82: 0.5065844225
A83: 200 | B83: 1.436101669 | C83: 0.4932083343
A84: 202.5 | B84: 1.201221108 | C84: 0.412542005
A85: 205 | B85: 1.279376112 | C85: 0.4393832101
A86: 207.5 | B86: 0.5516558316 | C86: 0.1894582115
A87: 210 | B87: 1.479717502 | C87: 0.5081875608
A88: 212.5 | B88: 1.645974658 | C88: 0.5652861749
A89: 215 | B89: 0.6392490212 | C89: 0.2195408248
A90: 217.5 | B90: 0.673993764 | C90: 0.2314734039
A91: 220 | B91: 0.1519776542 | C91: 0.05219452585
A92: 222.5 | B92: 1.122955724 | C92: 0.3856628915
A93: 225 | B93: 0.8353659086 | C93: 0.2868943315
A94: 227.5 | B94: 0.3656739695 | C94: 0.1255854326
A95: 230 | B95: 0.3449759164 | C95: 0.1184769858
A96: 232.5 | B96: 1.048344591 | C96: 0.3600387776
A97: 235 | B97: 0.5173029766 | C97: 0.1776602206
A98: 237.5 | B98: 0.95277048 | C98: 0.3272152324
A99: 240 | B99: 0.5660200413 | C99: 0.1943913915
A100: 242.5 | B100: 0.3420026531 | C100: 0.1174558616
A101: 245 | B101: 0.4861779026 | C101: 0.1669707645
A102: 247.5 | B102: 0.7964982459 | C102: 0.2735457953
A103: 250 | B103: 0.8340785493 | C103: 0.2864522066
A104: 252.5 | B104: 0.7277599566 | C104: 0.2499386246
A105: 255 | B105: 0.2606288893 | C105: 0.08950922008
A106: 257.5 | B106: 0.2856263205 | C106: 0.09809422607
A107: 260 | B107: 0.469205505 | C107: 0.1611418401
A108: 262.5 | B108: 0.1473676052 | C108: 0.05061127124
A109: 265 | B109: 1.172086885 | C109: 0.4025362775
A110: 267.5 | B110: 1.024084012 | C110: 0.3517068328
A111: 270 | B111: 0.5170298038 | C111: 0.1775664034
A112: 272.5 | B112: 0.687391952 | C112: 0.2360748176
A113: 275 | B113: 0.5922099972 | C113: 0.2033859528
A114: 277.5 | B114: 0.7185068645 | C114: 0.246760784
A115: 280 | B115: 0.6169295939 | C115: 0.2118755405
A116: 282.5 | B116: 0.8669224845 | C116: 0.2977319808
A117: 285 | B117: 0.7927664974 | C117: 0.2722641802
A118: 287.5 | B118: 0.7043336604 | C118: 0.2418932022
A119: 290 | B119: 0.8118373291 | C119: 0.2788137814
A120: 292.5 | B120: 0.4206778997 | C120: 0.1444757364
A121: 295 | B121: 0.689350844 | C121: 0.2367475708
A122: 297.5 | B122: 0.7028947121 | C122: 0.2413990162
A123: 300 | B123: 1.0416161 | C123: 0.3577279748
A124: 302.5 | B124: 0.4444317017 | C124: 0.1526336359
A125: 305 | B125: 0.3408722093 | C125: 0.117067627
A126: 307.5 | B126: 0.7901709963 | C126: 0.2713727929
A127: 310 | B127: 0.8080168789 | C127: 0.2775017031
A128: 312.5 | B128: 0.4236268681 | C128: 0.1454885169
A129: 315 | B129: 0.591416531 | C129: 0.2031134483
A130: 317.5 | B130: 1.134099555 | C130: 0.3894900789
A131: 320 | B131: 0.7582380008 | C131: 0.2604058678
A132: 322.5 | B132: 0.3423761854 | C132: =B132/$B$3*norm -> 0.1175841458
A133: 325 | B133: 1.023373681 | C133: 0.3514628801
A134: 327.5 | B134: 1.051293807 | C134: 0.3610516433
A135: 330 | B135: 1.148695835 | C135: 0.3945029599
A136: 332.5 | B136: 0.9912187238 | C136: 0.3404197253
A137: 335 | B137: 1.0105822 | C137: 0.3470698311
A138: 337.5 | B138: 1.325317038 | C138: 0.455160956
A139: 340 | B139: 1.152316939 | C139: 0.3957465759
A140: 342.5 | B140: 0.6855168856 | C140: 0.2354308532
A141: 345 | B141: 1.162749731 | C141: 0.3993295672
A142: 347.5 | B142: 1.260316362 | C142: 0.4328374147
A143: 350 | B143: 0.9850853108 | C143: 0.3383132934
A144: 352.5 | B144: 0.8057339283 | C144: 0.2767176567
A145: 355 | B145: 1.233044077 | C145: 0.423471143
A146: 357.5 | B146: 0.8846588316 | C146: 0.3038232725
A147: 360 | B147: 1.092840791 | C147: 0.3753203537
A148: 362.5 | B148: 0.9126568752 | C148: 0.3134387954
A149: 365 | B149: 1.447132283 | C149: 0.4969966391
A150: 367.5 | B150: 1.284013369 | C150: 0.4409758088
A151: 370 | B151: 1.474525109 | C151: 0.5064043086
A152: 372.5 | B152: 1.082688108 | C152: 0.3718335614
A153: 375 | B153: 1.066415255 | C153: 0.3662448858
A154: 377.5 | B154: 1.665370374 | C154: 0.571947353
A155: 380 | B155: 1.430075758 | C155: 0.4911388222
A156: 382.5 | B156: 1.58805377 | C156: 0.5453940842
A157: 385 | B157: 2.050137043 | C157: 0.7040898968
A158: 387.5 | B158: 1.672076885 | C158: 0.5742506069
A159: 390 | B159: 1.765297616 | C159: 0.6062659179
A160: 392.5 | B160: 1.706070837 | C160: 0.585925338
A161: 395 | B161: 2.214533524 | C161: 0.7605494892
A162: 397.5 | B162: 2.227679755 | C162: 0.7650643719
A163: 400 | B163: 2.290814485 | C163: 0.7867470811
A164: 402.5 | B164: 2.468553535 | C164: 0.8477889854
A165: 405 | B165: 2.528298526 | C165: 0.8683075379
A166: 407.5 | B166: 3.119928997 | C166: 1.071494461
A167: 410 | B167: 3.041170701 | C167: 1.044446064
A168: 412.5 | B168: 3.530649652 | C168: 1.212550526
A169: 415 | B169: 3.607543969 | C169: 1.238958766
A170: 417.5 | B170: 4.338522103 | C170: 1.490002627
A171: 420 | B171: 4.573886459 | C171: 1.570835109
A172: 422.5 | B172: 5.318109617 | C172: 1.826427782
A173: 425 | B173: 6.563262732 | C173: 2.254057599
A174: 427.5 | B174: 7.145700714 | C174: 2.454087494
A175: 430 | B175: 9.478288217 | C175: 3.255180914
A176: 432.5 | B176: 13.4225463 | C176: 4.60977927
A177: 435 | B177: 20.96070691 | C177: 7.198651434
A178: 437.5 | B178: 45.55164677 | C178: 15.64405384
A179: 440 | B179: 291.1754667 | C179: 100
A180: 442.5 | B180: 37.38755406 | C180: 12.84021435
A181: 445 | B181: 18.49981732 | C181: 6.353494519
A182: 447.5 | B182: 12.41102244 | C182: 4.262386039
A183: 450 | B183: 8.970540434 | C183: 3.080802286
A184: 452.5 | B184: 7.220610073 | C184: 2.479814029
A185: 455 | B185: 5.717164591 | C185: 1.963477437
A186: 457.5 | B186: 4.920903947 | C186: 1.690013243
A187: 460 | B187: 4.264477313 | C187: 1.464573015
A188: 462.5 | B188: 3.794799572 | C188: 1.303268993
A189: 465 | B189: 3.429875398 | C189: 1.177941067
A190: 467.5 | B190: 3.132243364 | C190: 1.075723652
A191: 470 | B191: 2.768721875 | C191: 0.9508774576
A192: 472.5 | B192: 2.80401011 | C192: 0.9629966914
A193: 475 | B193: 2.42188844 | C193: 0.8317625341
A194: 477.5 | B194: 2.177016404 | C194: 0.7476647772
A195: 480 | B195: 1.96230972 | C195: 0.6739268737
A196: 482.5 | B196: 1.749933917 | C196: =B196/$B$3*norm -> 0.6009894781
A197: 485 | B197: 1.949743221 | C197: 0.6696110917
A198: 487.5 | B198: 1.780877772 | C198: 0.6116166969
A199: 490 | B199: 1.593453324 | C199: 0.5472484827
A200: 492.5 | B200: 1.516192368 | C200: 0.5207143257
A201: 495 | B201: 1.735874557 | C201: 0.5961609941
... 9401 more rows

Sheet FFT 440 stumm
B2: Maximum: | C2: normiert auf Max
B3: =MAX(B4:B1803) -> 115.6112547 | C3: =norm -> 100
A4: 1.666666667 | B4: 0.9228614167 | C4: =B4/$B$3*norm -> 0.7982453081
A5: 3.333333333 | B5: 0.475171708 | C5: 0.4110081748
A6: 5 | B6: 0.3235309884 | C6: 0.2798438518
A7: 6.666666667 | B7: 0.2317729785 | C7: 0.2004761379
A8: 8.333333333 | B8: 0.1430571996 | C8: 0.1237398555
A9: 10 | B9: 0.2724012086 | C9: 0.2356182442
A10: 11.66666667 | B10: 0.206236574 | C10: 0.1783879731
A11: 13.33333333 | B11: 0.1076997778 | C11: 0.09315682808
A12: 15 | B12: 0.2012369504 | C12: 0.1740634602
A13: 16.66666667 | B13: 0.09240621185 | C13: 0.07992838764
A14: 18.33333333 | B14: 0.1343857873 | C14: 0.116239364
A15: 20 | B15: 0.07716182761 | C15: 0.06674248781
A16: 21.66666667 | B16: 0.0509757308 | C16: 0.04409236013
A17: 23.33333333 | B17: 0.1739307543 | C17: 0.1504444828
A18: 25 | B18: 0.07240276236 | C18: 0.06262605014
A19: 26.66666667 | B19: 0.09871299424 | C19: 0.08538355064
A20: 28.33333333 | B20: 0.08596349402 | C20: 0.07435564488
A21: 30 | B21: 0.05959178836 | C21: 0.05154497154
A22: 31.66666667 | B22: 0.1528780259 | C22: 0.132234553
A23: 33.33333333 | B23: 0.1567979598 | C23: 0.1356251692
A24: 35 | B24: 0.1133201931 | C24: 0.0980183057
A25: 36.66666667 | B25: 0.1138126382 | C25: 0.09844425483
A26: 38.33333333 | B26: 0.2011649442 | C26: 0.1740011772
A27: 40 | B27: 0.04033934449 | C27: 0.03489222963
A28: 41.66666667 | B28: 0.02227983677 | C28: 0.01927133895
A29: 43.33333333 | B29: 0.1545079241 | C29: 0.1336443623
A30: 45 | B30: 0.2817005728 | C30: 0.2436618938
A31: 46.66666667 | B31: 0.2035645419 | C31: 0.1760767517
A32: 48.33333333 | B32: 0.3451836506 | C32: 0.2985727051
A33: 50 | B33: 0.1368085727 | C33: 0.1183349951
A34: 51.66666667 | B34: 0.2623995944 | C34: 0.2269671711
A35: 53.33333333 | B35: 0.2911041758 | C35: 0.2517957066
A36: 55 | B36: 0.2742198819 | C36: 0.2371913379
A37: 56.66666667 | B37: 0.2083601042 | C37: 0.1802247581
A38: 58.33333333 | B38: 0.08394958161 | C38: 0.07261367571
A39: 60 | B39: 0.02851191252 | C39: 0.02466188312
A40: 61.66666667 | B40: 0.3502802118 | C40: 0.3029810657
A41: 63.33333333 | B41: 0.1609556629 | C41: 0.139221448
A42: 65 | B42: 0.3509851108 | C42: 0.3035907806
A43: 66.66666667 | B43: 0.3745309756 | C43: 0.3239571929
A44: 68.33333333 | B44: 0.1352781272 | C44: 0.1170112093
A45: 70 | B45: 0.4713867965 | C45: 0.4077343487
A46: 71.66666667 | B46: 0.4674050288 | C46: 0.4042902482
A47: 73.33333333 | B47: 0.3294278742 | C47: 0.2849444675
A48: 75 | B48: 0.3799684734 | C48: 0.3286604528
A49: 76.66666667 | B49: 0.5032006034 | C49: 0.4352522637
A50: 78.33333333 | B50: 0.2756709724 | C50: 0.2384464843
A51: 80 | B51: 0.1150801883 | C51: 0.09954064465
A52: 81.66666667 | B52: 0.2204422895 | C52: 0.190675458
A53: 83.33333333 | B53: 0.3343026454 | C53: 0.2891609871
A54: 85 | B54: 0.2877219588 | C54: 0.2488701982
A55: 86.66666667 | B55: 0.07982971756 | C55: 0.06905012642
A56: 88.33333333 | B56: 0.2869223624 | C56: 0.2481785732
A57: 90 | B57: 0.3843685871 | C57: 0.332466409
A58: 91.66666667 | B58: 0.5613030916 | C58: 0.4855090387
A59: 93.33333333 | B59: 0.507993038 | C59: 0.4393975648
A60: 95 | B60: 0.4780392063 | C60: 0.4134884682
A61: 96.66666667 | B61: 0.4734106686 | C61: 0.4094849326
A62: 98.33333333 | B62: 0.3047182979 | C62: 0.2635714823
A63: 100 | B63: 0.1986000376 | C63: 0.1717826159
A64: 101.6666667 | B64: 0.2894955192 | C64: 0.2504042706
A65: 103.3333333 | B65: 0.3276406997 | C65: 0.2833986193
A66: 105 | B66: 0.1615747504 | C66: 0.1397569387
A67: 106.6666667 | B67: 0.2958065681 | C67: 0.255863124
A68: 108.3333333 | B68: 0.6155997458 | C68: =B68/$B$3*norm -> 0.5324738903
A69: 110 | B69: 0.3897600759 | C69: 0.3371298726
A70: 111.6666667 | B70: 0.5576549032 | C70: 0.4823534737
A71: 113.3333333 | B71: 0.1573573959 | C71: 0.1361090633
A72: 115 | B72: 0.4320364748 | C72: 0.3736975918
A73: 116.6666667 | B73: 1.11885279 | C73: 0.9677715135
A74: 118.3333333 | B74: 0.4355708494 | C74: 0.3767547116
A75: 120 | B75: 0.5661276089 | C75: 0.4896820903
A76: 121.6666667 | B76: 0.5987596796 | C76: 0.5179077772
A77: 123.3333333 | B77: 0.6197222681 | C77: 0.5360397389
A78: 125 | B78: 0.4503034266 | C78: 0.3894979149
A79: 126.6666667 | B79: 0.4560082185 | C79: 0.3944323755
A80: 128.3333333 | B80: 0.2542222615 | C80: 0.2198940424
A81: 130 | B81: 0.4184770117 | C81: 0.3619690943
A82: 131.6666667 | B82: 0.4006630762 | C82: 0.3465606156
A83: 133.3333333 | B83: 0.373574322 | C83: 0.3231297185
A84: 135 | B84: 0.245730749 | C84: 0.2125491584
A85: 136.6666667 | B85: 0.6400679615 | C85: 0.5536381064
A86: 138.3333333 | B86: 0.336031132 | C86: 0.2906560721
A87: 140 | B87: 0.1672579365 | C87: 0.144672711
A88: 141.6666667 | B88: 0.2143879764 | C88: 0.1854386728
A89: 143.3333333 | B89: 0.161978955 | C89: 0.1401065626
A90: 145 | B90: 0.6840382391 | C90: 0.5916709758
A91: 146.6666667 | B91: 0.4644382586 | C91: 0.4017240878
A92: 148.3333333 | B92: 0.3803195705 | C92: 0.3289641405
A93: 150 | B93: 0.8183212624 | C93: 0.7078214523
A94: 151.6666667 | B94: 0.47148643 | C94: 0.4078205284
A95: 153.3333333 | B95: 0.1050876762 | C95: 0.09089744453
A96: 155 | B96: 0.1946948844 | C96: 0.1684047845
A97: 156.6666667 | B97: 0.4646782603 | C97: 0.4019316816
A98: 158.3333333 | B98: 0.2650334385 | C98: 0.2292453612
A99: 160 | B99: 0.0761459711 | C99: 0.06586380476
A100: 161.6666667 | B100: 0.1918712595 | C100: 0.1659624402
A101: 163.3333333 | B101: 0.4996039803 | C101: 0.432141301
A102: 165 | B102: 0.5276972989 | C102: 0.4564411138
A103: 166.6666667 | B103: 0.3573551536 | C103: 0.3091006618
A104: 168.3333333 | B104: 0.4204539394 | C104: 0.3636790729
A105: 170 | B105: 0.3748109757 | C105: 0.324199384
A106: 171.6666667 | B106: 0.2071618117 | C106: 0.1791882738
A107: 173.3333333 | B107: 0.5200439807 | C107: 0.4498212409
A108: 175 | B108: 0.2775018878 | C108: 0.240030167
A109: 176.6666667 | B109: 0.3025427993 | C109: 0.2616897464
A110: 178.3333333 | B110: 0.3346145939 | C110: 0.2894308125
A111: 180 | B111: 0.5748268239 | C111: 0.4972066303
A112: 181.6666667 | B112: 0.09674837261 | C112: 0.0836842164
A113: 183.3333333 | B113: 0.3228995745 | C113: 0.2792976992
A114: 185 | B114: 0.07611594324 | C114: 0.06583783163
A115: 186.6666667 | B115: 0.2350013542 | C115: 0.2032685785
A116: 188.3333333 | B116: 0.1402195348 | C116: 0.1212853671
A117: 190 | B117: 0.6147504012 | C117: 0.5317392347
A118: 191.6666667 | B118: 0.7974325586 | C118: 0.6897533984
A119: 193.3333333 | B119: 0.2493888317 | C119: 0.2157132818
A120: 195 | B120: 0.4441775529 | C120: 0.3841992321
A121: 196.6666667 | B121: 0.2371821527 | C121: 0.2051548988
A122: 198.3333333 | B122: 0.6457401007 | C122: 0.5585443235
A123: 200 | B123: 0.515067602 | C123: 0.4455168341
A124: 201.6666667 | B124: 0.2082636398 | C124: 0.1801413195
A125: 203.3333333 | B125: 0.3042906417 | C125: 0.2632015735
A126: 205 | B126: 0.08206998777 | C126: 0.07098788777
A127: 206.6666667 | B127: 0.3630356092 | C127: 0.3140140724
A128: 208.3333333 | B128: 0.4322095078 | C128: 0.3738472597
A129: 210 | B129: 0.6726870262 | C129: 0.5818525434
A130: 211.6666667 | B130: 0.2809827965 | C130: 0.2430410405
A131: 213.3333333 | B131: 0.5597499347 | C131: 0.4841656082
A132: 215 | B132: 0.2062130557 | C132: =B132/$B$3*norm -> 0.1783676305
A133: 216.6666667 | B133: 0.3065051616 | C133: 0.2651170618
A134: 218.3333333 | B134: 0.922279843 | C134: 0.7977422656
A135: 220 | B135: 0.4710595801 | C135: 0.4074513171
A136: 221.6666667 | B136: 1.068808148 | C136: 0.9244845151
A137: 223.3333333 | B137: 0.3289567232 | C137: 0.2845369371
A138: 225 | B138: 0.3524196166 | C138: 0.3048315818
A139: 226.6666667 | B139: 0.6140917849 | C139: 0.5311695528
A140: 228.3333333 | B140: 0.1984628748 | C140: 0.1716639745
A141: 230 | B141: 0.1336039568 | C141: 0.1155631059
A142: 231.6666667 | B142: 0.5846556522 | C142: 0.5057082491
A143: 233.3333333 | B143: 0.2481201307 | C143: 0.2146158964
A144: 235 | B144: 0.1554790048 | C144: 0.1344843157
A145: 236.6666667 | B145: 0.3528045516 | C145: 0.3051645382
A146: 238.3333333 | B146: 0.3667587277 | C146: 0.3172344496
A147: 240 | B147: 0.4948134198 | C147: 0.4279976209
A148: 241.6666667 | B148: 0.2403342303 | C148: 0.2078813441
A149: 243.3333333 | B149: 0.1962951551 | C149: 0.1697889669
A150: 245 | B150: 0.7340684951 | C150: 0.6349455308
A151: 246.6666667 | B151: 0.3354773154 | C151: 0.2901770386
A152: 248.3333333 | B152: 0.4282801471 | C152: 0.3704484897
A153: 250 | B153: 0.01989574635 | C153: 0.01720917777
A154: 251.6666667 | B154: 0.3575778853 | C154: 0.3092933175
A155: 253.3333333 | B155: 0.3019164875 | C155: 0.2611480068
A156: 255 | B156: 0.3597402252 | C156: 0.3111636717
A157: 256.6666667 | B157: 0.2581326378 | C157: 0.2232763916
A158: 258.3333333 | B158: 0.1561489217 | C158: 0.1350637721
A159: 260 | B159: 0.4678367655 | C159: 0.4046636865
A160: 261.6666667 | B160: 0.2918967295 | C160: 0.2524812399
A161: 263.3333333 | B161: 0.3094571909 | C161: 0.2676704717
A162: 265 | B162: 0.217152515 | C162: 0.1878299094
A163: 266.6666667 | B163: 0.2292268994 | C163: 0.1982738618
A164: 268.3333333 | B164: 0.2087310408 | C164: 0.1805456063
A165: 270 | B165: 0.09510735309 | C165: 0.08226478754
A166: 271.6666667 | B166: 0.248660762 | C166: 0.215083525
A167: 273.3333333 | B167: 0.07306547425 | C167: 0.06319927451
A168: 275 | B168: 0.1028024254 | C168: 0.08892077645
A169: 276.6666667 | B169: 0.1585534136 | C169: 0.13714358
A170: 278.3333333 | B170: 0.1820348368 | C170: 0.1574542524
A171: 280 | B171: 0.1611396223 | C171: 0.1393805669
A172: 281.6666667 | B172: 0.07213785476 | C172: 0.06239691362
A173: 283.3333333 | B173: 0.3736018357 | C173: 0.323153517
A174: 285 | B174: 0.04882101518 | C174: 0.04222860074
A175: 286.6666667 | B175: 0.4269787744 | C175: 0.3693228444
A176: 288.3333333 | B176: 0.2499575072 | C176: 0.2162051677
A177: 290 | B177: 0.3102243525 | C177: 0.2683340417
A178: 291.6666667 | B178: 0.2245224067 | C178: 0.1942046276
A179: 293.3333333 | B179: 0.2778052665 | C179: 0.2402925797
A180: 295 | B180: 0.1071480106 | C180: 0.09267956725
A181: 296.6666667 | B181: 0.2426290796 | C181: 0.2098663146
A182: 298.3333333 | B182: 0.283426032 | C182: 0.2451543603
A183: 300 | B183: 0.04022637059 | C183: 0.03479451086
A184: 301.6666667 | B184: 0.1929393976 | C184: 0.1668863451
A185: 303.3333333 | B185: 0.2162155612 | C185: 0.1870194746
A186: 305 | B186: 0.36660959 | C186: 0.3171054504
A187: 306.6666667 | B187: 0.4136956627 | C187: 0.3578333819
A188: 308.3333333 | B188: 0.2646966904 | C188: 0.2289540849
A189: 310 | B189: 0.3394512021 | C189: 0.2936143223
A190: 311.6666667 | B190: 0.2373321139 | C190: 0.2052846104
A191: 313.3333333 | B191: 0.3535081386 | C191: 0.3057731182
A192: 315 | B192: 0.4119203369 | C192: 0.3562977825
A193: 316.6666667 | B193: 0.330272713 | C193: 0.2856752257
A194: 318.3333333 | B194: 0.5157388091 | C194: 0.4460974065
A195: 320 | B195: 0.2718176706 | C195: 0.2351135027
A196: 321.6666667 | B196: 0.1189809234 | C196: =B196/$B$3*norm -> 0.1029146545
A197: 323.3333333 | B197: 0.3089824454 | C197: 0.2672598322
A198: 325 | B198: 0.28263937 | C198: 0.2444739231
A199: 326.6666667 | B199: 0.2792035491 | C199: 0.241502049
A200: 328.3333333 | B200: 0.1925218606 | C200: 0.1665251891
A201: 330 | B201: 0.4945918966 | C201: 0.4278060105
... 14201 more rows
